Cogmind - Beta 16.1 @@@ ROGUE MODE // 2026.02.28 @ 19:02:41 Player: Anonymous Bosch Result: Destroyed by Y-64 Sentinel with KE Penetrator Performance ------------- Evolutions (5) 2500 Regions Visited (18) 3600 Robots Destroyed (217) 1085 Value Destroyed (7587) 7587 Prototype IDs (49) 980 Alien Tech Used (0) 0 Bonus (3524) 3524 TOTAL SCORE: 19276 Bonus ------- High Alert Combat Kills 1052 Follower Combat Kills 682 Entered Garrisons 400 Used RIF Installer 1000 Aligned with FarCom 300 Met Data Miner 300 Friendly Fire -210 Cogmind --------- Core Integrity 0/1000 Matter 286/300 Energy 90/100 System Corruption 12% Temperature Cool (0) Movement Flying (37) Location -5/Garrison Parts ------- > --- POWER (2) -------- (None) > --- PROPULSION (6) --- Nuclear Pulse Array (fused) Nuclear Pulse Array (fused) > --- UTILITY (7) ------ Advanced Heat Sink Improved Sensor Array Improved Signal Interpreter Advanced Melee Analysis Suite Advanced Melee Analysis Suite Relay Coupler [Grunt] (12) > --- WEAPON (2) ------- Ionic Axe > --- INVENTORY (5) ---- Layered Medium Armor Plating Advanced Plasma Cannon Enhanced Gauss Cannon Improved Remote Datajack Improved Plasma Cutter Peak State ------------ > --- POWER ------------ Light Nuclear Core Micro Fission Core > --- PROPULSION ------- Nuclear Pulse Array Nuclear Pulse Array Nuclear Pulse Array > --- UTILITY ---------- Advanced Heat Sink Improved Signal Interpreter Advanced Targeting Computer Experimental Core Shielding Advanced System Shield Advanced System Shield Relay Coupler [Grunt] > --- WEAPON ----------- Improved Remote Datajack Ionic Axe > --- INVENTORY -------- Nuclear Pulse Array Layered Medium Armor Plating Heavy Ion Cannon Enhanced Gauss Cannon [Rating: 95] Favorites ----------- Power Improved Deuterium Engine Engine Improved Deuterium Engine Power Core Light Nuclear Core Reactor Antimatter Reactor Propulsion Advanced Treads Treads Advanced Treads Leg Carbon-fiber Leg Wheel Wheel Flight Unit Nuclear Pulse Array Utility High-capacity Storage Unit Device Advanced Heat Sink Storage High-capacity Storage Unit Processor Advanced Targeting Computer Hackware Hacking Suite Protection Hardened Medium Armor Plating Weapon Gauss Cannon Energy Gun Gatling Laser Energy Cannon Heavy Plasma Cannon Ballistic Gun Gauss Rifle Ballistic Cannon Gauss Cannon Launcher Heavy Rocket Launcher Special Weapon Improved Remote Datajack Slashing Weapon Power Sword Build | -11 -10 -10 -10 -9 -8 -7 -7 -7 -6 -6 -6 -6 -6 -6 -6 -5 -5 -5 ------- Run | Yrd Mat Min Exi Min Mat Fac Low Dat Pro Fac Gar Fac Low Low Zio Pro Fac Gar Slots Evolved 10 | . . . . . 4 2 . . . 2 . . . . . . 2 . Power 1 | . . . . . . . . . . . . . . . . . 1 . Propulsion 4 | . . . . . 2 1 . . . 1 . . . . . . . . Utility 5 | . . . . . 2 1 . . . 1 . . . . . . 1 . Weapon . | . . . . . . . . . . . . . . . . . . . Parts Attached 181 | 8 11 2 1 3 10 21 2 7 . 5 35 14 1 . 3 9 49 . Power 17 | 2 1 . . . 2 1 . 1 . . 4 . . . . 1 5 . Engine 11 | 2 1 . . . 1 1 . 1 . . 3 . . . . . 2 . Core 5 | . . . . . 1 . . . . . . . . . . 1 3 . Reactor 1 | . . . . . . . . . . . 1 . . . . . . . Propulsion 67 | 2 3 . . 2 1 7 1 4 . . 20 8 . . 1 1 17 . Treads 34 | 1 3 . . 2 1 7 1 3 . . 5 8 . . 1 1 1 . Leg 16 | . . . . . . . . . . . 15 . . . . . 1 . Wheel 12 | 1 . . . . . . . . . . . . . . . . 11 . Hover . | . . . . . . . . . . . . . . . . . . . Flight 5 | . . . . . . . . 1 . . . . . . . . 4 . Utility 51 | 2 3 1 1 1 3 6 . 1 . 3 3 3 1 . 1 6 16 . Device 19 | 1 . 1 1 . 1 1 . . . 1 2 2 . . 1 2 6 . Storage 6 | 1 3 . . . . . . . . . . . 1 . . . 1 . Processor 7 | . . . . . . 2 . 1 . . . 1 . . . . 3 . Hackware 5 | . . . . . 1 . . . . . . . . . . 1 3 . Protection 14 | . . . . 1 1 3 . . . 2 1 . . . . 3 3 . Artifact . | . . . . . . . . . . . . . . . . . . . Weapon 46 | 2 4 1 . . 4 7 1 1 . 2 8 3 . . 1 1 11 . Energy Gun 12 | 1 1 . . . 1 . . . . 1 4 3 . . . . 1 . Energy Cannon 5 | . . . . . . . . . . 1 . . . . . . 4 . Ballistic Gun 8 | 1 1 . . . . 1 . . . . 3 . . . . . 2 . Ballistic Cannon 7 | . . 1 . . 1 4 . . . . . . . . . . 1 . Launcher 5 | . 1 . . . . 2 1 . . . . . . . . 1 . . Special Weapon 4 | . 1 . . . 1 . . 1 . . . . . . . . 1 . Impact Weapon . | . . . . . . . . . . . . . . . . . . . Slashing Weapon 5 | . . . . . 1 . . . . . 1 . . . 1 . 2 . Piercing Weapon . | . . . . . . . . . . . . . . . . . . . Special Melee Weapon . | . . . . . . . . . . . . . . . . . . . Unidentified Prototypes 11 | . . 1 . . 1 2 . . . . . 1 . . 1 1 4 . Parts Lost 79 | . 4 1 . . . 4 1 8 . 2 18 . . . 3 6 27 5 Power 9 | . . . . . . . . 1 . . 3 . . . . . 3 2 Propulsion 34 | . 1 . . . . 1 1 3 . 1 8 . . . 2 4 12 1 Utility 19 | . . 1 . . . 1 . 2 . . 4 . . . 1 2 7 1 Weapon 17 | . 3 . . . . 2 . 2 . 1 3 . . . . . 5 1 Highest Loss Streak 15 | . 3 1 . . . 1 1 8 . 1 4 . . . 3 5 15 5 To Critical Strikes 1 | . . . . . . . . . . . . . . . . . 1 . Average Backups 15 | 4 10 15 16 17 16 16 16 15 12 15 16 17 17 16 17 18 9 5 Power . | . 1 1 1 1 1 1 1 . . 1 . . 1 1 1 1 . . Propulsion 1 | 2 3 3 3 3 1 1 3 3 1 1 1 2 2 1 . . . . Utility 5 | . 2 4 4 3 4 4 5 4 4 5 5 5 6 5 6 8 4 1 Weapon 5 | 1 3 5 4 4 7 6 5 4 4 5 6 5 5 5 8 7 3 2 Tool/Special . | . . . . . . . . . . . . . . . . . . . Unused Backups 40 | . 3 . . . 7 4 . . . 1 2 5 . 2 1 3 11 1 Power 5 | . . . . . 2 1 . . . . . 1 . . . . 1 . Propulsion 7 | . 3 . . . . . . . . . . 2 . . . . 2 . Utility 13 | . . . . . 1 1 . . . 1 1 . . 1 . 2 6 . Weapon 10 | . . . . . 3 2 . . . . 1 2 . . . 1 1 . Tool/Special 5 | . . . . . 1 . . . . . . . . 1 1 . 1 1 Average Slot Usage (%) 94 | . 95 98 91 100 99 96 99 89 99 89 91 99 99 100 96 87 76 77 Engine 6 | . 10 14 14 14 7 7 7 7 7 6 5 6 6 6 6 3 1 . Core 1 | . . . . . 1 . . . . . . . . . . 2 7 9 Treads 27 | . 27 28 28 28 35 34 38 32 37 30 12 25 40 40 38 29 1 . Leg 3 | . . . . . . . . . . . 21 14 . . . . . . Flight 1 | . . . . . . . . . . . . . . . . . 8 16 Device 10 | . 13 12 6 9 9 6 7 2 7 7 11 13 12 13 12 11 12 11 Storage 7 | . 14 14 14 14 9 7 7 7 7 6 6 6 6 6 6 6 1 . Processor 11 | . . . . . . 9 15 20 23 15 13 18 20 20 18 13 11 17 Hackware 2 | . . . . . 8 6 . . . . . . . . . . 8 10 Protection 3 | . . . . 4 9 6 7 4 . 7 4 . . . . 5 1 . Energy Gun 2 | . 12 12 . . . . . . . 2 5 4 2 . . 3 . . Energy Cannon 1 | . . . . . . . . . . 1 . . 3 6 . . 2 4 Ballistic Gun 4 | . 14 14 14 14 . 3 . . . . 3 2 5 5 . 1 2 . Ballistic Cannon 4 | . . 1 14 14 11 8 14 5 7 4 . . . . . . . . Slashing Weapon 2 | . . . . . 4 2 . 4 7 3 2 5 . . 12 6 3 5 Peak Build Rating 95 | 7 10 16 15 15 32 47 48 61 46 52 71 66 66 65 63 63 95 90 Average Rating 47 | 4 7 9 11 15 30 40 46 42 44 50 56 64 65 63 60 57 72 85 On Entrance 41 | . 7 10 9 15 15 32 47 47 43 46 52 64 66 65 62 56 55 90 Avg Prop Armor Cover (%) 11 | 13 . . . . . . . . . . 9 . . . . . 13 . Naked Turns . | . . . . . . . . . . . . . . . . . . . Heaviest Build 107 | 15 48 51 49 51 71 78 78 73 61 83 83 61 69 69 66 82 107 25 Greatest Support 139 | 20 40 40 40 40 80 106 108 108 106 106 120 138 138 138 138 139 78 39 Greatest Overweight (x) 9 | 2 1 1 1 1 . . . 3 . . 4 2 . . . 1 9 . Average Overweight (x) . | . . 1 1 1 . . . . . . . . . . . . . . Largest Inventory Capacity 20 | 8 20 20 20 20 20 20 20 20 20 20 20 20 20 20 20 20 20 5 Average Capacity 18 | 5 12 20 20 20 20 20 20 20 20 20 20 20 20 20 20 20 10 5 Most Carried 20 | 8 17 16 20 20 20 20 20 20 19 20 20 20 20 20 20 20 20 5 Average Carried 17 | 5 10 15 17 19 19 19 19 18 15 18 19 19 20 18 18 19 10 5 Final Capacity 20 | 8 20 20 20 20 20 20 20 20 20 20 20 20 20 20 20 20 5 5 Final Carried 20 | 8 15 16 20 20 20 20 20 13 19 17 20 20 20 19 18 20 5 5 Class Distribution -------------------- 48% | Mutant 42% | Scavenger-Mutant 4% | Hacker-Mutant Dominant Class ---------------- Mutant | -10/Materials Mutant | -10/Mines Mutant | -10/Exiles Mutant | -9/Mines Mutant | -8/Materials Scavenger-Mutant | -7/Factory Mutant | -7/Lower Caves Mutant | -7/Data Miner Mutant | -6/Proximity Caves Mutant | -6/Factory Scavenger-Mutant | -6/Garrison Mutant | -6/Factory Scavenger-Mutant | -6/Lower Caves Scavenger-Mutant | -6/Lower Caves Gladiator | -6/Zion Mutant | -5/Proximity Caves Hacker-Mutant | -5/Factory Mutant | -5/Garrison Resources | -11 -10 -10 -10 -9 -8 -7 -7 -7 -6 -6 -6 -6 -6 -6 -6 -5 -5 -5 ----------- Run | Yrd Mat Min Exi Min Mat Fac Low Dat Pro Fac Gar Fac Low Low Zio Pro Fac Gar Matter Collected 6506 | 317 338 31 . 130 88 1556 378 155 181 79 1239 151 93 116 5 455 1194 . Remotely . | . . . . . . . . . . . . . . . . . . . Salvage Created 7537 | 143 747 29 . . 69 1695 304 . 127 63 1004 460 44 70 . 422 2264 96 Parts 393 | 13 33 3 . . 7 95 10 . 5 2 49 15 8 7 . 17 119 10 Haulers Intercepted 10 | . 2 . . . . 3 . . . . . 1 . . . 1 3 . Recyclers Shooed 9 | 1 2 . . . . 3 . . . . . . . . . . 3 . Parts Field Recycled . | . . . . . . . . . . . . . . . . . . . Retrieved Matter . | . . . . . . . . . . . . . . . . . . . Parts Self-Destructed 55 | . . . . . . . 9 . 17 . . . 12 3 . 14 . . Prevented . | . . . . . . . . . . . . . . . . . . . Parts Restored . | . . . . . . . . . . . . . . . . . . . Kills | -11 -10 -10 -10 -9 -8 -7 -7 -7 -6 -6 -6 -6 -6 -6 -6 -5 -5 -5 ------- Run | Yrd Mat Min Exi Min Mat Fac Low Dat Pro Fac Gar Fac Low Low Zio Pro Fac Gar Combat Hostiles Destroyed 157 | . 12 2 . 1 2 39 8 . 2 2 27 3 1 6 . 17 29 6 Melee 13 | . . . . . . . . . . . 1 3 . . . 2 5 2 Guns 48 | . 12 2 . . . 2 . . . 1 23 . 1 . . 3 4 . Cannons 48 | . . . . 1 2 29 6 . 2 1 . . . . . . 7 . AOE 46 | . . . . . . 8 2 . . . 2 . . 6 . 11 13 4 Classes Destroyed 19 | 2 6 . . 1 1 4 2 . 1 . . . . 1 . . 1 . Worker 16 | . 2 . . . . 4 . . . . . . . . . . 10 . Builder 3 | . . . . . . 1 . . . . . . . . . . 2 . Tunneler 4 | 3 . . . . . 1 . . . . . . . . . . . . Hauler 10 | . 2 . . . . 3 . . . . . 1 . . . 1 3 . Recycler 17 | 1 3 . . . . 7 . . . . . 1 . . . . 5 . Operator 5 | . 1 . . . . . . . . . . . . . . . 4 . Drone 3 | . . . . . . . . . 1 . . . . . . 2 . . Watcher 4 | . 1 . . . . . . . . . 1 . . . . . 2 . Swarmer 59 | . 3 2 . . . 9 2 . 1 . 12 . . 4 . 9 11 6 Saboteur 1 | . . . . . . . . . . . . . . . . . 1 . Grunt 46 | . 9 . . . . 15 4 . . . 4 2 . . . 5 7 . Brawler 1 | . . . . . . . 1 . . . . . . . . . . . Duelist 2 | . . . . . . 1 . . . . 1 . . . . . . . Sentry 15 | . . . . . 2 4 1 . . . 6 1 . . . 1 . . Hunter 9 | . . . . . . 2 . . . 2 2 . . . . . 3 . Programmer 18 | . . . . . . 8 . . . . 2 . 1 . . . 7 . Enhanced Grunt 1 | . . . . . . . . . 1 . . . . . . . . . Samaritan 2 | . . . . . . . 1 . 1 . . . . . . . . . Master Thief 2 | . . . . . . . . . . . . . . 2 . . . . Assembled 1 | . . . . 1 . . . . . . . . . . . . . . Savage 1 | . . . . . . . 1 . . . . . . . . . . . Best Kill Streak 12 | 2 4 2 . 1 2 7 4 . 1 1 4 2 1 4 . 5 12 6 Combat Bots Only 9 | . 3 2 . 1 2 6 4 . 1 1 4 1 1 4 . 5 9 6 Max Kills in Single Turn 7 | 1 2 1 . 1 1 3 2 . 1 1 2 1 1 3 . 4 7 4 Gunslinging 1 | . . . . . . . . . . . . . . . . . 1 . Exploded 5 | . . . . . . 3 2 . . . 1 . . 3 . 4 5 4 Melee 1 | . . . . . . . . . . . 1 1 . . . 1 1 1 Uniques/NPCs Destroyed . | . . . . . . . . . . . . . . . . . . . Combat | -11 -10 -10 -10 -9 -8 -7 -7 -7 -6 -6 -6 -6 -6 -6 -6 -5 -5 -5 -------- Run | Yrd Mat Min Exi Min Mat Fac Low Dat Pro Fac Gar Fac Low Low Zio Pro Fac Gar Hostile Shots Fired 1404 | . 103 30 . 3 12 227 35 41 7 53 329 66 8 6 46 63 324 51 Missed 435 | . 26 8 . 2 4 76 12 18 4 17 89 15 3 . 21 20 101 19 Hits 969 | . 77 22 . 1 8 151 23 23 3 36 240 51 5 6 25 43 223 32 Melee 15 | . . . . . . . 2 . . . 5 . . 6 . . 2 . Projectile 954 | . 77 22 . 1 8 151 21 23 3 36 235 51 5 . 25 43 221 32 AOE 1 | . . . . . . . . . . . . . . . . . 1 . Critical Strikes 28 | . 1 . . . . 4 4 . . . 4 1 . . 1 3 10 . Part Disruptions 4 | . . . . . . . . 3 . . . . . . . . 1 . Damage Taken 14494 | . 853 168 . 15 104 1876 445 1051 106 409 3124 739 76 56 309 885 3756 522 Core 1938 | . 203 26 . . . 117 41 95 18 19 229 43 . . 26 119 905 97 Absorbed by Shields 497 | . . . . . 16 80 64 16 . . . . . . . . 321 . Regen/Repaired (Parts) 305 | . 106 . . . . . . . . . . . . . . . 199 . Core Remaining (%) 63 | 100 . . . 8 100 . . . 61 . . . . . . 48 . . Volleys Fired 524 | 9 82 11 . 1 9 99 19 11 13 15 78 2 17 33 . 29 90 6 Largest 2 | 2 2 2 . 2 2 2 2 2 1 2 2 2 2 2 . 2 2 1 Hottest 165 | 70 120 85 . 53 66 80 80 80 40 165 165 60 118 129 . 99 131 98 Shots Fired 879 | 18 156 22 . 2 16 192 37 20 13 26 155 2 22 35 . 48 109 6 Gun 465 | 18 154 16 . 1 . 33 . . . 11 149 2 8 . . 36 37 . Cannon 367 | . . 6 . 1 14 157 36 18 13 15 4 . 14 28 . 1 55 5 Launcher 38 | . . . . . . 2 1 . . . 2 . . 7 . 11 14 1 Special 9 | . 2 . . . 2 . . 2 . . . . . . . . 3 . Kinetic 519 | 9 82 17 . 2 14 190 36 18 13 14 63 1 6 . . 16 38 . Thermal 317 | 9 74 5 . . 2 . . . . 12 90 1 16 28 . 21 54 5 Explosive 38 | . . . . . . 2 1 . . . 2 . . 7 . 11 14 1 Electromagnetic . | . . . . . . . . . . . . . . . . . . . Robot Hit Streak 38 | 8 13 1 . 1 5 26 12 15 5 3 38 . 3 4 . 7 14 1 Robot Miss Streak 5 | 2 5 2 . 1 3 4 2 2 4 3 5 2 3 . . 2 5 . Penetration Max 1 | . . . . . . 1 . . . . . . . . . . 1 . Secondary Targets 7 | . 2 . . . . . . . . . 3 . . . . 1 1 . Max Gunslinging Chain 1 | . 1 . . . . . . . . . 1 . . . . 1 1 . Shots Hit Robots 593 | 12 111 7 . 1 8 125 26 14 6 8 120 24 3 1 . 35 88 4 Core Hits 359 | 5 37 2 . 1 3 70 16 4 4 5 93 9 2 8 . 29 63 8 Critical Kills 2 | 1 . . . . . . . . . . 1 . . . . . . . Critical Parts Destroyed 1 | . . . . . . . . . . . . . . . . . 1 . Critical Strikes 44 | 2 6 . . . . 13 5 2 5 1 3 3 . . . 3 1 . Burn 10 | 1 6 . . . . . . . . 1 1 . . . . 1 . . Destroy 3 | 1 . . . . . . . . . . 1 . . . . . 1 . Blast 25 | . . . . . . 13 5 2 5 . . . . . . . . . Sever 6 | . . . . . . . . . . . 1 3 . . . 2 . . Melee Attacks 285 | . . . . . 12 30 . . . 2 82 37 3 . . 20 89 10 Impact . | . . . . . . . . . . . . . . . . . . . Slashing 285 | . . . . . 12 30 . . . 2 82 37 3 . . 20 89 10 Piercing . | . . . . . . . . . . . . . . . . . . . Sneak Attacks 25 | . . . . . . 1 . . . . 1 4 . . . 1 18 . Combat Hostiles 1 | . . . . . . . . . . . . . . . . 1 . . Follow-up Attacks 2 | . . . . . . . . . . . . . . . . 2 . . Damage Inflicted 22699 | 154 1410 67 . 36 187 4887 898 332 223 341 3345 1140 83 624 . 2258 6120 594 Guns 6106 | 154 1362 45 . . . 631 . . . 129 2578 . 83 . . 479 645 . Cannons 5591 | . . 22 . 21 167 3044 773 332 223 212 96 . . 32 . . 669 . Explosions 6091 | . . . . . . 953 121 . . . 270 . . 592 . 1450 2291 414 Melee 4688 | . . . . . . 126 . . . . 401 1140 . . . 329 2512 180 Ramming 175 | . . . . 15 20 133 4 . . . . . . . . . 3 . Kinetic 7969 | 55 651 67 . 21 167 3675 773 332 223 179 914 . 51 . . 216 645 . Thermal 4345 | 99 759 . . . . . . . . 162 1760 . 32 32 . 263 1238 . Explosive 5522 | . . . . . . 953 121 . . . 270 . . 592 . 1450 1722 414 Electromagnetic . | . . . . . . . . . . . . . . . . . . . Impact . | . . . . . . . . . . . . . . . . . . . Slashing 4688 | . . . . . . 126 . . . . 401 1140 . . . 329 2512 180 Piercing . | . . . . . . . . . . . . . . . . . . . Highest Corruption 12 | . . . . . . 1 1 1 1 . 2 2 4 4 4 . 12 12 Average Corruption 3 | . . . . . . 1 1 1 1 . 1 2 3 4 4 . 9 12 Corruption Purged . | . . . . . . . . . . . . . . . . . . . Corruption Blocked . | . . . . . . . . . . . . . . . . . . . Effects 178 | . . . . . . 4 15 2 8 . 20 11 33 27 3 . 52 3 Message Errors 36 | . . . . . . 2 5 1 . . 3 1 4 8 2 . 10 . Matter Fused 34 | . . . . . . . 5 . 2 . 5 1 6 4 . . 11 . Heat Flow Errors 29 | . . . . . . . 1 . 1 . 4 1 8 2 . . 12 . Energy Discharges 26 | . . . . . . 1 2 . 2 . 2 2 3 6 1 . 6 1 Parts Rejected 3 | . . . . . . . . . 1 . . . 1 . . . 1 . Parts Fused 2 | . . . . . . . . . . . . . . . . . 1 1 Data Loss (minor) 20 | . . . . . . . 2 . 1 . 2 2 3 3 . . 6 1 Data Loss (major) 9 | . . . . . . 1 . 1 1 . 2 1 1 2 . . . . Misfires 8 | . . . . . . . . . . . 2 . 3 1 . . 2 . Alerts 7 | . . . . . . . . . . . . 2 4 . . . 1 . Weapon Failures 4 | . . . . . . . . . . . . 1 . 1 . . 2 . Overload Shots 3 | . . . . . . . . . . . . 1 . . . 2 . . Overflow Damage 977 | . . . . . . 89 26 . . . . 67 . . . 89 702 4 Projectiles 79 | . . . . . . 34 26 . . . . . . . . . 19 . Explosions 252 | . . . . . . 20 . . . . . . . . . 27 205 . Melee 646 | . . . . . . 35 . . . . . 67 . . . 62 478 4 Knockbacks 33 | . . . . . 1 27 . 3 . 2 . . . . . . . . Impact 1 | . . . . . . 1 . . . . . . . . . . . . Kinetic 29 | . . . . . 1 23 . 3 . 2 . . . . . . . . Secondary 3 | . . . . . . 3 . . . . . . . . . . . . Self-Inflicted Damage 149 | . . . . . . . . . . . . . . 49 . 75 25 . Shots 4 | . . . . . . . . . . . . . . 1 . 2 1 . Rammed 15 | . . . . 3 1 7 2 . . . . . . . . . 2 . Targets Rammed 21 | . . . . 3 1 13 2 . . . . . . . . . 2 . Kicked . | . . . . . . . . . . . . . . . . . . . Crushed 6 | . . . . . . 6 . . . . . . . . . . . . Highest Temperature 398 | 36 398 160 . 18 57 112 209 24 262 15 87 140 250 248 . 183 369 44 Average Temperature 60 | 15 96 90 . 9 23 23 50 11 132 10 20 80 83 49 . 94 70 23 Received Heat Transfer 2523 | . 414 . . . 30 477 42 . 18 . 684 342 . . . 271 236 9 Effects 6 | . 4 . . . . . . . . . . . . . . . 2 . Shutdowns 1 | . 1 . . . . . . . . . . . . . . . . . Energy Bleed 2 | . 2 . . . . . . . . . . . . . . . . . Interference 2 | . . . . . . . . . . . . . . . . . 2 . Matter Decay 1 | . 1 . . . . . . . . . . . . . . . . . Siege Activations . | . . . . . . . . . . . . . . . . . . . Martial Activations . | . . . . . . . . . . . . . . . . . . . Shielding Activations . | . . . . . . . . . . . . . . . . . . . Robots Disrupted . | . . . . . . . . . . . . . . . . . . . Combat Hostiles . | . . . . . . . . . . . . . . . . . . . Robots Corrupted . | . . . . . . . . . . . . . . . . . . . Combat Hostiles . | . . . . . . . . . . . . . . . . . . . Parts Fried . | . . . . . . . . . . . . . . . . . . . Impact Corruptions . | . . . . . . . . . . . . . . . . . . . Robots Melted 2 | . . . . . . . . . . . 1 . . . . 1 . . Combat Hostiles 2 | . . . . . . . . . . . 1 . . . . 1 . . Parts Melted 18 | . 4 . . . . . . . . 1 10 . . . . 2 1 . Heat Transferred 8674 | 370 2616 . . . . . . . . 346 3543 . 37 50 . 568 1144 . Parts Sabotaged 3 | . . . . . . . . . . . . . . . . . 3 . Parts Stolen 5 | . . . . . . . . . . . . . . 5 . . . . Parts Stripped . | . . . . . . . . . . . . . . . . . . . Power Chain Reactions . | . . . . . . . . . . . . . . . . . . . Alert | -11 -10 -10 -10 -9 -8 -7 -7 -7 -6 -6 -6 -6 -6 -6 -6 -5 -5 -5 ------- Run | Yrd Mat Min Exi Min Mat Fac Low Dat Pro Fac Gar Fac Low Low Zio Pro Fac Gar Maximum Alert Level 5 | . . . . . . 3 . . . 2 5 3 . . . . 3 2 Low Security (%) 54 | 100 100 100 . 100 100 80 . . . . . . . . . . 34 . Level 1 2 | . . . . . . 2 . . . 1 5 . . . . . 5 . Level 2 20 | . . . . . . 10 . . . 98 26 . . . . . 59 100 Level 3 14 | . . . . . . 6 . . . . 32 100 . . . . . . Level 4 3 | . . . . . . . . . . . 16 . . . . . . . Level 5 4 | . . . . . . . . . . . 19 . . . . . . . High Security . | . . . . . . . . . . . . . . . . . . . Max Security . | . . . . . . . . . . . . . . . . . . . Peak Influence 1972 | 10 92 48 . . 61 901 . . . 451 1972 1035 . . . . 702 670 Initial 1035 | . . . . . . . . . . 450 284 1035 . . . . 180 448 Average 391 | 1 20 3 . . 4 179 . . . 423 1026 869 . . . . 388 486 Influence Increases 7778 | 20 382 56 . . 97 1519 186 . 212 536 2028 141 30 90 . 335 1874 272 Destroy 0b10 Robot/C 3380 | . 240 40 . . 40 780 160 . 120 40 780 60 20 80 . 300 600 120 Destroy 0b10 Robot/NC 315 | 20 45 . . . . 80 . . 10 . 5 10 . . . 15 130 . Destroy Leader 532 | . 56 . . . 20 204 10 . 10 10 40 22 10 10 . 20 110 10 Allied During Kill 141 | . . . . . . . 1 . 57 . 79 . . . . . 4 . Successful Hack 104 | . 40 . . . 8 7 . . . . 21 11 . . . . 17 . Disable Machine 390 | . . . . . 15 195 . . . 30 15 15 . . . . 120 . Anti-Garrison Action 850 | . . . . . . . . . . . 850 . . . . . . . Destroy Structure 806 | . 1 1 . . 14 148 . . . 6 148 8 . . . . 428 52 Advance Influence 600 | . . . . . . . . . . 450 . . . . . . 150 . Partial Spotted 75 | . . . . . . . . . . . . . . . . . 30 45 Lose Combat Pursuer 585 | . . 15 . . . 105 15 . 15 . 90 15 . . . . 285 45 Influence Decreases 7108 | 20 382 24 32 . 97 620 853 232 212 130 462 1329 809 95 . 286 1283 242 Entered New Map 2160 | . . . 32 . . . 333 232 . . 122 937 291 2 . . 19 192 Time Decay 3738 | 20 342 24 . . 97 580 490 . 212 90 . 392 518 93 . 236 644 . Lost Part 660 | . 40 . . . . 40 10 . . 20 180 . . . . 50 270 50 Lost Ally 250 | . . . . . . . 20 . . 20 160 . . . . . 50 . Purge Threat 300 | . . . . . . . . . . . . . . . . . 300 . Squads Dispatched 31 | . 2 . . . 1 14 . . . 1 . 2 . . . . 11 . Investigation 5 | . . . . . . 2 . . . 1 . 1 . . . . 1 . Extermination 12 | . . . . . . 8 . . . . . . . . . . 4 . Reinforcement 10 | . 2 . . . 1 2 . . . . . 1 . . . . 4 . Assault 2 | . . . . . . . . . . . . . . . . . 2 . Garrison 2 | . . . . . . 2 . . . . . . . . . . . . Intercept . | . . . . . . . . . . . . . . . . . . . Searches Triggered . | . . . . . . . . . . . . . . . . . . . Construction Impeded . | . . . . . . . . . . . . . . . . . . . Haulers Reinforced 3 | . . . . . . 2 . . . . . . . . . . 1 . Active Scanning Responses . | . . . . . . . . . . . . . . . . . . . Cargo Convoy Interrupts 1 | . . . . . . . . . . . . . . . . . 1 . Stealth | -11 -10 -10 -10 -9 -8 -7 -7 -7 -6 -6 -6 -6 -6 -6 -6 -5 -5 -5 --------- Run | Yrd Mat Min Exi Min Mat Fac Low Dat Pro Fac Gar Fac Low Low Zio Pro Fac Gar Distress Signals 13 | . 1 . . 1 . 7 . . . . 1 . . . . . 3 . Communications Jammed . | . . . . . . . . . . . . . . . . . . . Distress Signals . | . . . . . . . . . . . . . . . . . . . Times Spotted 257 | . 20 3 . 2 4 54 9 3 10 4 41 7 1 5 2 16 61 15 Peak Tracking Total 15 | . 5 3 . 1 2 5 5 3 4 2 5 3 1 5 2 5 9 15 Tactical Retreats 27 | . . 1 . 1 . 5 1 . 1 . 3 1 . . . . 13 1 Traps | -11 -10 -10 -10 -9 -8 -7 -7 -7 -6 -6 -6 -6 -6 -6 -6 -5 -5 -5 ------- Run | Yrd Mat Min Exi Min Mat Fac Low Dat Pro Fac Gar Fac Low Low Zio Pro Fac Gar Traps Triggered 15 | . . . . . . 2 . . . . 9 1 . . . . 3 . Indirectly . | . . . . . . . . . . . . . . . . . . . Trap Hack Attempts . | . . . . . . . . . . . . . . . . . . . Triggered . | . . . . . . . . . . . . . . . . . . . Disarmed . | . . . . . . . . . . . . . . . . . . . Reprogrammed 6 | . . . . . . 6 . . . . . . . . . . . . Reused . | . . . . . . . . . . . . . . . . . . . Traps Extracted . | . . . . . . . . . . . . . . . . . . . Installed 1 | . . . . . . . . . . . . . . 1 . . . . Triggered . | . . . . . . . . . . . . . . . . . . . Machines | -11 -10 -10 -10 -9 -8 -7 -7 -7 -6 -6 -6 -6 -6 -6 -6 -5 -5 -5 ---------- Run | Yrd Mat Min Exi Min Mat Fac Low Dat Pro Fac Gar Fac Low Low Zio Pro Fac Gar Machines Disabled 29 | . . . . . 1 13 . 1 . 2 3 1 . . . . 8 . Max in Single Turn 3 | . . . . . 1 2 . 1 . . 1 1 . . . . 3 . Garrison Access 1 | . . . . . 1 . . . . . . . . . . . . . Garrison Relay 2 | . . . . . . . . . . . 2 . . . . . . . Machines Repaired . | . . . . . . . . . . . . . . . . . . . Machines Dismantled 1 | . . . . . 1 . . . . . . . . . . . . . Machines Sabotaged . | . . . . . . . . . . . . . . . . . . . Overloaded Fab Kills . | . . . . . . . . . . . . . . . . . . . Hacking | -11 -10 -10 -10 -9 -8 -7 -7 -7 -6 -6 -6 -6 -6 -6 -6 -5 -5 -5 --------- Run | Yrd Mat Min Exi Min Mat Fac Low Dat Pro Fac Gar Fac Low Low Zio Pro Fac Gar Machines Accessed 47 | . 5 1 1 . 5 12 1 4 . 2 3 4 . . . . 9 . Terminals 23 | . 3 . . . 2 7 . . . . 3 2 . . . . 6 . Fabricators 4 | . . . . . . 1 . . . 1 . 1 . . . . 1 . Repair Stations 2 | . 1 . . . . . . . . . . . . . . . 1 . Recycling Units 5 | . 1 . . . 1 2 . . . . . 1 . . . . . . Scanalyzers 1 | . . . . . 1 . . . . . . . . . . . . . Garrison Access 5 | . . . . . 1 2 . . . 1 . . . . . . 1 . Total Hacks 131 | . 16 1 1 . 14 26 1 28 . 5 5 5 . . . . 29 . Successful 70 | . 9 1 1 . 9 4 1 28 . 3 2 3 . . . . 9 . Failed 61 | . 7 . . . 5 22 . . . 2 3 2 . . . . 20 . Catastrophic 11 | . 1 . . . 1 5 . . . . 1 1 . . . . 2 . Database Lockouts . | . . . . . . . . . . . . . . . . . . . Manual 41 | . 10 . 1 . 3 10 . . . . . 2 . . . . 15 . Terminals 65 | . 10 . . . 7 18 . . . . 5 3 . . . . 22 . Fabricators 10 | . . . . . . 1 . . . 4 . 1 . . . . 4 . Repair Stations 4 | . 2 . . . . . . . . . . . . . . . 2 . Recycling Units 11 | . 4 . . . 2 4 . . . . . 1 . . . . . . Scanalyzers 4 | . . . . . 4 . . . . . . . . . . . . . Garrison Access 6 | . . . . . 1 3 . . . 1 . . . . . . 1 . Terminal Hacks 47 | . 5 1 1 . 3 4 1 28 . . 2 . . . . . 2 . Record 11 | . . . . . . . . 11 . . . . . . . . . . Part Schematic 10 | . 2 . . . . . . 8 . . . . . . . . . . Robot Schematic 6 | . . . . . . . . 6 . . . . . . . . . . Robot Analysis 1 | . . . . . 1 . . . . . . . . . . . . . Prototype ID Bank 5 | . 1 . . . 1 . . 3 . . . . . . . . . . Open Door 3 | . . 1 . . . . 1 . . . 1 . . . . . . . Branch Access Points 2 | . 1 . . . . 1 . . . . . . . . . . . . Terminal Index 1 | . 1 . . . . . . . . . . . . . . . . . Alert Level 1 | . . . . . . 1 . . . . . . . . . . . . Unreport Threat 2 | . . . . . . . . . . . . . . . . . 2 . Locate Traps 1 | . . . . . . 1 . . . . . . . . . . . . Reprogram Traps 1 | . . . . . . 1 . . . . . . . . . . . . Hauler Manifests 1 | . . . . . 1 . . . . . . . . . . . . . Patrol Navigation 1 | . . . . . . . . . . . 1 . . . . . . . Proto ID Catalog 1 | . . . 1 . . . . . . . . . . . . . . . Fabricator Hacks 4 | . . . . . . . . . . 2 . 1 . . . . 1 . Load Schematic 2 | . . . . . . . . . . 1 . . . . . . 1 . Build 2 | . . . . . . . . . . 1 . 1 . . . . . . Repair Station Hacks 4 | . 2 . . . . . . . . . . . . . . . 2 . Scan Component 2 | . 1 . . . . . . . . . . . . . . . 1 . Repair 2 | . 1 . . . . . . . . . . . . . . . 1 . Recycling Unit Hacks 3 | . 1 . . . 1 . . . . . . 1 . . . . . . Retrieve Components 3 | . 1 . . . 1 . . . . . . 1 . . . . . . Scanalyzer 4 | . . . . . 4 . . . . . . . . . . . . . Insert Component 1 | . . . . . 1 . . . . . . . . . . . . . Retrieve Study 3 | . . . . . 3 . . . . . . . . . . . . . Garrison Access Hacks 3 | . . . . . 1 . . . . 1 . . . . . . 1 . Unlock Access 2 | . . . . . . . . . . 1 . . . . . . 1 . Seal Access 1 | . . . . . 1 . . . . . . . . . . . . . Unauthorized Hacks 5 | . 1 . . . . . . . . . . 1 . . . . 3 . Terminals 4 | . . . . . . . . . . . . 1 . . . . 3 . Track 1 | . . . . . . . . . . . . . . . . . 1 . Assimilate 1 | . . . . . . . . . . . . 1 . . . . . . Botnet 1 | . . . . . . . . . . . . . . . . . 1 . Skim 1 | . . . . . . . . . . . . . . . . . 1 . Fabricators . | . . . . . . . . . . . . . . . . . . . Repair Stations . | . . . . . . . . . . . . . . . . . . . Recycling Units 1 | . 1 . . . . . . . . . . . . . . . . . Mask 1 | . 1 . . . . . . . . . . . . . . . . . Scanalyzers . | . . . . . . . . . . . . . . . . . . . Garrison Access . | . . . . . . . . . . . . . . . . . . . Data Cores Recovered 1 | . . . . . . . . . . . . . . . . . 1 . Used . | . . . . . . . . . . . . . . . . . . . Hacking Detections 30 | . 3 . . . 2 11 . . . 1 3 2 . . . . 8 . Full Trace Events 5 | . . . . . . 2 . . . 1 1 . . . . . 1 . Feedback Events . | . . . . . . . . . . . . . . . . . . . Feedback Blocked . | . . . . . . . . . . . . . . . . . . . Robot Schematics Acquired 6 | . . . . . . . . 6 . . . . . . . . . . Robots Built . | . . . . . . . . . . . . . . . . . . . Authchips . | . . . . . . . . . . . . . . . . . . . Time . | . . . . . . . . . . . . . . . . . . . Total Robot Build Rating . | . . . . . . . . . . . . . . . . . . . Part Schematics Acquired 10 | . 2 . . . . . . 8 . . . . . . . . . . Parts Built 2 | . . . . . . . . . . . . 2 . . . . . . Authchips . | . . . . . . . . . . . . . . . . . . . Time 286 | . . . . . . . . . . 169 . 117 . . . . . . Total Part Build Rating 14 | . . . . . . . . . . . . 14 . . . . . . Part Studies Acquired 3 | . . . . . 3 . . . . . . . . . . . . . Parts Repaired 2 | . 1 . . . . . . . . . . . . . . . 1 . Time 70 | . 26 . . . . . . . . . . . . . . . 44 . Parts Recycled . | . . . . . . . . . . . . . . . . . . . Recycled Matter . | . . . . . . . . . . . . . . . . . . . Retrieved Matter . | . . . . . . . . . . . . . . . . . . . Retrieved Components 23 | . 10 . . . 3 . . . . . . 10 . . . . . . Parts Scanalyzed . | . . . . . . . . . . . . . . . . . . . Part Schematics Acquired . | . . . . . . . . . . . . . . . . . . . Parts Damaged . | . . . . . . . . . . . . . . . . . . . Bothacking | -11 -10 -10 -10 -9 -8 -7 -7 -7 -6 -6 -6 -6 -6 -6 -6 -5 -5 -5 ------------ Run | Yrd Mat Min Exi Min Mat Fac Low Dat Pro Fac Gar Fac Low Low Zio Pro Fac Gar Used RIF Installer 2 | . . . . . . . . . . . 1 . . . . . . 1 Command Fork 1 | . . . . . . . . . . . . . . . . . . 1 Robots Hacked 2 | . . . . . . . . . . . . . . . . . 2 . Non-combat . | . . . . . . . . . . . . . . . . . . . Combat 2 | . . . . . . . . . . . . . . . . . 2 . Robot Hacks Applied 2 | . . . . . . . . . . . . . . . . . 2 . amplify_resonance 1 | . . . . . . . . . . . . . . . . . 1 . reboot_system 1 | . . . . . . . . . . . . . . . . . 1 . Relay Couplers Released 13 | . . . . . . . . . . . 13 . . . . . . . Machine Destruction 10 | . . . . . . . . . . . 10 . . . . . . . Programmers 3 | . . . . . . . . . . . 3 . . . . . . . Attached 1 | . . . . . . . . . . . . . . . . . 1 . Fabnet Peak Effective % . | . . . . . . . . . . . . . . . . . . . Robots Rewired 10 | . . . . . . . 1 . . . 9 . . . . . . . Allies Hacked . | . . . . . . . . . . . . . . . . . . . Hacks Repelled . | . . . . . . . . . . . . . . . . . . . Allies | -11 -10 -10 -10 -9 -8 -7 -7 -7 -6 -6 -6 -6 -6 -6 -6 -5 -5 -5 -------- Run | Yrd Mat Min Exi Min Mat Fac Low Dat Pro Fac Gar Fac Low Low Zio Pro Fac Gar Total Allies 12 | . . . . . . . 1 2 . . 9 . . . . . . . Largest Group 3 | . . . . . . . 1 2 2 1 3 . . . . . . . Highest-Rated Group 192 | . . . . . . . 32 192 192 96 123 . . . . . . . Highest-Rated Ally 96 | . . . . . . . 32 96 96 96 51 . . . . . . . Total Orders . | . . . . . . . . . . . . . . . . . . . Ally Attacks 138 | . . . . . . . 9 12 38 1 60 . . . . . 18 . Total Damage 2942 | . . . . . . . 252 249 692 84 1589 . . . . . 76 . Kills 20 | . . . . . . . . 1 6 . 12 . . . . . 1 . Allies Corrupted . | . . . . . . . . . . . . . . . . . . . Allies Melted . | . . . . . . . . . . . . . . . . . . . Field Lobotomies 2 | . . . . . . . . 2 . . . . . . . . . . Intel | -11 -10 -10 -10 -9 -8 -7 -7 -7 -6 -6 -6 -6 -6 -6 -6 -5 -5 -5 ------- Run | Yrd Mat Min Exi Min Mat Fac Low Dat Pro Fac Gar Fac Low Low Zio Pro Fac Gar Active Infowar (turns) 13291 | 38 1072 613 242 604 302 1717 1201 129 1026 118 256 890 1413 1403 293 715 1140 119 Sensors 5973 | . . . . . . . . . . . . 890 1413 1403 293 715 1140 119 Seismic 7318 | 38 1072 613 242 604 302 1717 1201 129 1026 118 256 . . . . . . . Robot Analysis Total 1 | . . . . . 1 . . . . . . . . . . . . . Derelict Logs Recovered 10 | . . 1 . 2 . . 1 . 3 . . . . 3 . . . . Drone Launches 4 | . . . . . . . . . . . . . . . . . 4 . Drone Recoveries 1 | . . . . . . . . . . . . . . . . . 1 . Exploration | -11 -10 -10 -10 -9 -8 -7 -7 -7 -6 -6 -6 -6 -6 -6 -6 -5 -5 -5 ------------- Run | Yrd Mat Min Exi Min Mat Fac Low Dat Pro Fac Gar Fac Low Low Zio Pro Fac Gar Turns Passed 20752 | 121 1097 686 521 928 1525 2639 1299 348 1026 186 2802 921 1436 1403 299 1060 2336 119 Spaces Moved 12318 | 70 423 271 216 371 697 1323 816 175 648 85 1311 552 784 884 194 550 2714 234 Core 229 | 24 . . . . . . . . . . . . . . . . 205 . Treads 8424 | 5 423 271 216 371 697 1323 816 175 648 85 625 308 784 884 194 550 49 . Legs 930 | . . . . . . . . . . . 686 244 . . . . . . Wheels 297 | 41 . . . . . . . . . . . . . . . . 256 . Hover . | . . . . . . . . . . . . . . . . . . . Flight 2438 | . . . . . . . . . . . . . . . . . 2204 234 Fastest Speed 34 | 50 160 240 240 240 160 151 148 148 148 151 120 120 147 147 147 148 34 34 Average Speed 134 | 102 181 240 240 240 160 157 149 159 150 151 157 134 147 147 147 162 48 34 Slowest Speed 400 | 160 240 240 240 240 160 160 151 280 151 152 400 305 147 147 148 240 320 37 Overloaded Moves . | . . . . . . . . . . . . . . . . . . . Propulsion Burnouts . | . . . . . . . . . . . . . . . . . . . Robots Hopped 2 | . . . . . . . . . . . . . . . . . 2 . Potential Cave-ins 4 | . . . . . . . . . . . . . 4 . . . . . Cave-ins Triggered . | . . . . . . . . . . . . . . . . . . . Exploration Rate (%) 50 | 4 53 79 59 65 48 34 71 81 78 4 75 11 80 79 12 53 36 34 Regions Visited 18 Branch Regions 10 Pre-discovered Areas 2 | . . . . . . . . 1 . . . . . 1 . . . . Known Exits Taken 12 | . 1 . . . 1 1 1 1 1 1 . 1 1 1 . 1 1 . Unknown Exits Taken 5 | 1 . 1 1 1 . . . . . . . . . . 1 . . . Scrap Searched 13 | . . . . 3 . . 1 . 3 . . . 1 2 . 3 . . Spaces Dug 356 | . . . . . 12 22 16 . . 4 75 7 13 72 . 33 97 5 Terrain Destroyed 847 | . . 1 . . 13 159 27 . 4 6 76 8 18 125 . 153 235 22 Melee 155 | . . . . . 12 22 . . . 2 46 7 3 . . 12 46 5 Projectile 149 | . . 1 . . 1 41 11 . 4 4 1 1 15 26 . 3 37 4 AOE 542 | . . . . . . 96 16 . . . 29 . . 99 . 138 151 13 Terrain Rammed . | . . . . . . . . . . . . . . . . . . . Walls Destroyed . | . . . . . . . . . . . . . . . . . . . Machines Disabled . | . . . . . . . . . . . . . . . . . . . Actions | -11 -10 -10 -10 -9 -8 -7 -7 -7 -6 -6 -6 -6 -6 -6 -6 -5 -5 -5 --------- Run | Yrd Mat Min Exi Min Mat Fac Low Dat Pro Fac Gar Fac Low Low Zio Pro Fac Gar Total 15182 | 99 599 287 220 404 1070 1629 855 220 683 113 1764 675 1043 950 208 639 3473 251 Wait 1286 | . 54 . . 21 304 90 7 10 15 2 49 41 234 20 2 5 432 . Move 12298 | 69 422 270 215 370 696 1322 815 174 647 85 1310 551 783 883 193 549 2710 234 Hop 2 | . . . . . . . . . . . . . . . . . 2 . Pick Up 157 | 10 18 2 3 3 14 14 1 3 7 2 33 7 . 7 3 9 21 . Fast Attach 72 | 5 1 . . . . 5 1 1 . . 9 12 1 . . 5 32 . Attach 83 | 3 6 1 1 . 5 5 1 11 1 3 16 . . . 4 2 24 . Detach 10 | 1 . . . . . . . 1 . . . . . . 1 . 7 . Swap 171 | 1 7 2 . 3 11 32 5 6 . 2 42 4 4 5 2 14 30 1 Drop 140 | 1 9 1 1 3 13 19 . 3 . 2 30 21 1 1 3 9 23 . Fire 524 | 9 82 11 . 1 9 99 19 11 13 15 78 2 17 33 . 29 90 6 Melee 282 | . . . . . 12 30 . . . 2 82 37 3 . . 17 89 10 Ram 2 | . . . . . . . . . . . . . . . . . 2 . Kick . | . . . . . . . . . . . . . . . . . . . Crush 19 | . . . . 3 1 13 2 . . . . . . . . . . . Escape Stasis 23 | . . . . . . . . . . . 12 . . . . . 11 . Rewire 107 | . . . . . . . 4 . . . 103 . . . . . . . Trap 1 | . . . . . . . . . . . . . . 1 . . . . Miscellaneous 5 | . . . . . 5 . . . . . . . . . . . . . Route ------- -11/Scrapyard -10/Materials (discovered 3 exits: [*Mat] / *Min x2) -10/Mines (discovered 3 exits: [*Mat] / *Exi / Sub) -10/Exiles -9/Mines -8/Materials (discovered 3 exits: *Fac x3) -7/Factory (discovered 3 exits: *Fac / *Low x2) -7/Lower Caves -7/Data Miner -6/Proximity Caves -6/Factory -6/Garrison (discovered 3 exits: *Fac x3) -6/Factory -6/Lower Caves -6/Lower Caves (discovered 2 exits: *Fac / *Zio) -6/Zion -5/Proximity Caves -5/Factory (discovered 4 exits: *Fac / *Upp / Ext / Gar) -5/Garrison History --------- Turn | Location | Event 15 | -11/Scrapyard | Discovered new exit (range 15) 122 | -11/Scrapyard | Entered Materials 307 | -10/Materials | Build established: Mutant 484 | -10/Materials | Discovered new exit (range 16) 770 | -10/Materials | Core integrity fell below 50% 846 | -10/Materials | Lost 3 parts (3w) 873 | -10/Materials | Core integrity fell below 20% 1027 | -10/Materials | Discovered new exit (range 6) 1134 | -10/Materials | Repaired Lgt. Treads 1152 | -10/Materials | Identified exit to Mines 1219 | -10/Materials | Entered Mines 1313 | -10/Mines | Found a Scrap Suit stashed away for nefarious purposes 1506 | -10/Mines | Found the Drone Emporium 1522 | -10/Mines | Found Prototype Device 1523 | -10/Mines | Identified Thief Drone Bay 1584 | -10/Mines | Discovered new exit (range 12) 1793 | -10/Mines | Identified exit to Subcaves 1893 | -10/Mines | Deemed a non-threat by the Exiles lab entrance 1895 | -10/Mines | Discovered new exit (range 5) 1905 | -10/Mines | Entered Exiles 1963 | -10/Exiles | Met 8R-AWN 2004 | -10/Exiles | Met EX-HEX 2073 | -10/Exiles | Met EX-BIN 2114 | -10/Exiles | Aligned with FarCom system 2117 | -10/Exiles | Given EX-Vault access code 2172 | -10/Exiles | Opened EX-Vault 2190 | -10/Exiles | Found Flying Fortress v7 2198 | -10/Exiles | Found Field Lobotomy Kit 2204 | -10/Exiles | Found Skeleton Box 2253 | -10/Exiles | Warned to stay clear of 0b10 Research branches 2323 | -10/Exiles | Met EX-DEC 2407 | -10/Exiles | Discovered new exit (range 10) 2426 | -10/Exiles | Stole three prototypes: Flying Fortress v7, Skeleton Box, Field Lobotomy Kit 2426 | -10/Exiles | Entered Mines 2742 | -9/Mines | Learned Materials garrison access intel 2853 | -9/Mines | Assembled infested the area 3243 | -9/Mines | Learned 4 Materials zone layouts 3336 | -9/Mines | Discovered new exit (range 5) 3338 | -9/Mines | Received a Rocket Launcher from a helpful Derelict 3354 | -9/Mines | Entered Materials 3354 | -8/Materials | Evolved 4 slots: Propulsion x2, Utility x2 3355 | -8/Materials | Identified exit to Factory 3356 | -8/Materials | Loaded intel: 1 garrison access location 3641 | -8/Materials | Build established: Scavenger-Mutant 3808 | -8/Materials | Discovered exit to Factory (range 16) 3959 | -8/Materials | Build established: Mutant 4014 | -8/Materials | Discovered exit to Factory (range 10) 4879 | -8/Materials | Entered Factory 4879 | -7/Factory | Evolved 2 slots: Propulsion x1, Utility x1 4881 | -7/Factory | FarCom data flow suspended 5325 | -7/Factory | Build established: Scavenger-Mutant 5335 | -7/Factory | Discovered new exit (range 6) 6744 | -7/Factory | Discovered new exit (range 6) 6803 | -7/Factory | Identified exit to Factory 7170 | -7/Factory | Identified exit to Lower Caves 7364 | -7/Factory | Garrison activated, responded to threat 7518 | -7/Factory | Entered Lower Caves 7659 | -7/Lower Caves | Build established: Mutant 7995 | -7/Lower Caves | A Derelict revealed a hidden shortcut to meet someone special 8000 | -7/Lower Caves | Identified exit to Data Miner 8096 | -7/Lower Caves | Attracted the attention of an 0b10 outpost 8166 | -7/Lower Caves | Learned Factory terminal intel 8521 | -7/Lower Caves | Spotted B-75 Beast 8817 | -7/Lower Caves | Entered Data Miner 8820 | -7/Data Miner | Discovered new exit (range 6) 8848 | -7/Data Miner | Met Data Miner 8877 | -7/Data Miner | Learned location of Section 7 (-2) 8877 | -7/Data Miner | Acquired the access code to Warlord's prototype stash 8902 | -7/Data Miner | Received God Mode back door access code from Data Miner 9016 | -7/Data Miner | Data Conduit disabled 9065 | -7/Data Miner | Assimilated Enhanced Grunt with FLK Orb 9068 | -7/Data Miner | Assimilated Enhanced Grunt with FLK Orb 9093 | -7/Data Miner | Lost 8 parts (1p3n2u2w) 9163 | -7/Data Miner | Identified exit to Proximity Caves 9165 | -7/Data Miner | Entered Proximity Caves 9165 | -6/Proximity Caves | Accompanied by 2 allies 9291 | -6/Proximity Caves | Spotter reported a threat 9347 | -6/Proximity Caves | Spotter reported a threat 9443 | -6/Proximity Caves | Spotter reported a threat 10042 | -6/Proximity Caves | Discovered exit to Factory (range 8) 10068 | -6/Proximity Caves | Learned Factory stockpile data 10191 | -6/Proximity Caves | Entered Factory 10191 | -6/Factory | Accompanied by 1 ally 10191 | -6/Factory | Evolved 2 slots: Propulsion x1, Utility x1 10193 | -6/Factory | Loaded intel: 26 terminal locations 10377 | -6/Factory | Identified exit to Garrison 10377 | -6/Factory | Entered Garrison 10415 | -6/Garrison | Triggered checkpoint 10521 | -6/Garrison | Triggered checkpoint 10807 | -6/Garrison | Triggered checkpoint 10877 | -6/Garrison | Lost 4 parts (1p1n1u1w) 11034 | -6/Garrison | Garrison Relay disabled 11117 | -6/Garrison | Build established: Scavenger-Mutant 11217 | -6/Garrison | Triggered checkpoint 11263 | -6/Garrison | Triggered checkpoint 11435 | -6/Garrison | Lost 3 allies 11445 | -6/Garrison | Triggered checkpoint 11536 | -6/Garrison | Discovered new exit (range 15) 11808 | -6/Garrison | Identified exit to Factory 12241 | -6/Garrison | Triggered checkpoint 12249 | -6/Garrison | Triggered checkpoint 12338 | -6/Garrison | Discovered exit to Factory (range 7) 12529 | -6/Garrison | Garrison Relay disabled 12736 | -6/Garrison | Lost 3 allies 12881 | -6/Garrison | Discovered exit to Factory (range 13) 12996 | -6/Garrison | Installed Relay Interface Framework 13179 | -6/Garrison | Entered Factory 13330 | -6/Factory | Fabricated Adv. Hardlight Generator? 13784 | -6/Factory | Build established: Mutant 14062 | -6/Factory | Discovered new exit (range 15) 14084 | -6/Factory | Identified exit to Lower Caves 14100 | -6/Factory | Entered Lower Caves 14546 | -6/Lower Caves | Build established: Scavenger-Mutant 15055 | -6/Lower Caves | Encountered a Warlord checkpoint 15360 | -6/Lower Caves | Discovered new exit (range 8) 15371 | -6/Lower Caves | Identified exit to Lower Caves 15536 | -6/Lower Caves | Entered another Lower Caves area 15538 | -6/Lower Caves | Discovered new exit (range 6) 15544 | -6/Lower Caves | Identified exit to Factory 15563 | -6/Lower Caves | Encountered a Warlord checkpoint 15631 | -6/Lower Caves | Learned 4 Factory zone layouts 16156 | -6/Lower Caves | Learned Factory stockpile data 16289 | -6/Lower Caves | Learned location of Zion (-6) 16439 | -6/Lower Caves | Encountered a Master Thief 16439 | -6/Lower Caves | Flying Fortress v7 stolen by Master Thief 16441 | -6/Lower Caves | Encountered a Master Thief 16441 | -6/Lower Caves | Skeleton Box stolen by Master Thief 16442 | -6/Lower Caves | Encountered a Master Thief 16442 | -6/Lower Caves | Encountered a Master Thief 16442 | -6/Lower Caves | Encountered a Master Thief 16443 | -6/Lower Caves | Field Lobotomy Kit stolen by Master Thief 16445 | -6/Lower Caves | Adv. Hardlight Generator stolen by Master Thief 16446 | -6/Lower Caves | Adv. Treads stolen by Master Thief 16859 | -6/Lower Caves | Discovered new exit (range 7) 16937 | -6/Lower Caves | Identified exit to Zion 16939 | -6/Lower Caves | Entered Zion 17028 | -6/Zion | Found Prototype Device 17030 | -6/Zion | Identified Bomb Factory No. 2 17067 | -6/Zion | Given A8's code to call for help 17094 | -6/Zion | Discovered new exit (range 15) 17167 | -6/Zion | System corruption cleaned by Quarantine Array 17173 | -6/Zion | RIF detected upon attempting to enter Zion 17173 | -6/Zion | Attacked by Zionites 17173 | -6/Zion | Spotted CL-WD8(B) 17173 | -6/Zion | Spotted S9-BLN(B) 17212 | -6/Zion | Lost 3 parts (2n1u) 17238 | -6/Zion | Entered Proximity Caves 17241 | -5/Proximity Caves | Spotter reported a threat 17261 | -5/Proximity Caves | Build established: Gladiator 17699 | -5/Proximity Caves | Build established: Mutant 17766 | -5/Proximity Caves | Attracted the attention of an 0b10 checkpoint 17978 | -5/Proximity Caves | Spotted B-75 Beast 18030 | -5/Proximity Caves | Discovered exit to Factory (range 15) 18044 | -5/Proximity Caves | Core integrity fell below 50% 18065 | -5/Proximity Caves | Lost 5 parts (4n1u) 18130 | -5/Proximity Caves | Found Imp. Powered Armor 18298 | -5/Proximity Caves | Entered Factory 18298 | -5/Factory | Evolved 2 slots: Power x1, Utility x1 18299 | -5/Factory | Identified exit to Upper Caves 18299 | -5/Factory | Identified exit to Extension 18339 | -5/Factory | Build established: Scavenger-Mutant 18634 | -5/Factory | Lost 4 parts (3n1u) 18776 | -5/Factory | Repaired Imp. Medium Armor Plating 18858 | -5/Factory | Lost 6 parts (2p3n1u) 19050 | -5/Factory | Cargo convoy interrupted 19162 | -5/Factory | Destroyed 9 combat bots 19217 | -5/Factory | Lost 3 allies 19250 | -5/Factory | Lost 15 parts (1p5n5u4w) 19314 | -5/Factory | Core integrity fell below 50% 19381 | -5/Factory | System corruption reached 10% 19659 | -5/Factory | Build established: Hacker-Mutant 19798 | -5/Factory | First assault squad dispatched 19902 | -5/Factory | Core integrity fell below 20% 20440 | -5/Factory | Discovered new exit (range 9) 20527 | -5/Factory | Identified exit to Factory 20634 | -5/Factory | Identified exit to Garrison 20634 | -5/Factory | Entered Garrison 20658 | -5/Garrison | Expanded RIF knowledge: Command Fork 20664 | -5/Garrison | Build established: Mutant 20680 | -5/Garrison | Spotted B-75 Beast 20680 | -5/Garrison | Spotted B-75 Beast 20718 | -5/Garrison | Triggered checkpoint 20753 | -5/Garrison | Destroyed by Y-64 Sentinel with KE Penetrator Last Messages --------------- fused. Initiating installation procedure... 20658_ Expanded RIF knowledge: Command Fork. 20672_ System corrupted: Energy discharge (-84). 20682_ B-75 Beast springs to life. 20718_ Beams of light sweep through the air. An alarm sounds. 20721_ Lgt. Nuclear Core destroyed. 20725_ Penetrated by Slug. 20734_ Destroyed Lgt. Nuclear Core. 20736_ System corrupted: Component data lost. 20736_ Adv. System Shield destroyed. 20737_ S-27 Virus destroyed. 20738_ Nuclear Pulse Array destroyed. 20740_ S-27 Virus destroyed. 20741_ Hvy. Rocket Launcher destroyed. 20743_ S-27 Virus destroyed. 20748_ Mic. Fission Core destroyed. 20750_ S-27 Virus destroyed. 20753_ Penetrated by Slug. Map ----- +----------------------------------------------------+ | ?????????????????????????????????????????????????? | | ?????????????????????????????????????????????????? | | ?????????????????????????????????????????????????? | | ?????????????????????????????????????????????????? | | ?????????????????????????????????????????????????? | | ?????????????????????????????????????????????????? | | ?????????????????????????????????????????????????? | | ?????????????????????????????????????????????????? | | ????????????????????????? ?????????????????????? | | ????????????????????????? #????????????????????? | | ????????????????????????? #????????????????????? | | ????????????????????????# #????????????????????? | | ????????????????????????# #????????????????????? | | ????????????????????????# ????????????????????? | | ????????????????????????# ????????????????????? | | ????????????????????????# #????????????????????? | | ????????????????????????# #????????????????????? | | ????????????????????????# #????????????????????? | | ????????????????????????# ^#????????????????????? | | ????????????????????????# #????????????????????? | | ????????????????????????# #????????????????????? | | ????????????????????????# #????????????????????? | | ????????????????????????# #????????????????????? | | ????????????????????????# #????????????????????? | | ????????????????????????#%= #????????????????????? | | ???????????????????????##@*=##???????????????????? | | ??????????????????????? *==% ###?????????????????? | | ??????????????????????##%%s= #?????????????????? | | ???????????????? YY*[% #?????????????????? | | ?????????????????## #### =%[ ###?????????????????? | | ??????????????????????# ???????????????????? | | ???######""""########### #??????????????????? | | ??? ##??????????????????? | | ??? ???????????????????? | | ??? ##???????????????????? | | ???# ???# ## ###########????????????????????? | | ???# ## ## ###????????????????????????????? | | ???" #????????????????????????????? | | ???" #????????????????????????????? | | ???" #????????????????????????????? | | ???" #????????????????????????????? | | ???# ## ## ###????????????????????????????? | | ???# ## ## #######################????????? | | ???# #????????? | | ???# ########## #????????? | | ???# %#????????# #????????? | | ???# ##""""## #########^ #????????# ##???????? | | ???# ????????# #???????# #????????# !#???????? | | ???#??????????# #???????# #????????# !#???????? | | ??????????????# #???????# #????????# !#???????? | +----------------------------------------------------+ Best States ------------- Heat Dissipation 83 Energy Generation 32 Energy Capacity 365 Matter Stores 300 Matter Capacity 300 Sight Range 16 Robot Scan Range 16 Terrain Scan Density 10 Armor Coverage 625 Resistance: EM 20 Melee Speed Boost 20 Evasion (%) 63 Targeting Accuracy 8 Melee Accuracy 16 Core Analysis 6 Recoil Reduction 6 Matter Filtering 50 Offensive Hacking 10 Defensive Hacking 28 Relay Coupler Types 1 Relay Coupler Value 23 Item Schematics ----------------- Huge Storage Unit | -10/Materials | Hacked Hcp. Storage Unit | -10/Materials | Hacked Combat Drone Bay | -7/Data Miner | Free Lgt. Regenerative Plating | -7/Data Miner | Free Cld. Aerolev Unit | -7/Data Miner | Free Exp. Power Shielding | -7/Data Miner | Free Prc. Rocket Launcher | -7/Data Miner | Free Field Propulsion Drive | -7/Data Miner | Free Imp. Shock Absorption System | -7/Data Miner | Free Lrn. Proton Cannon | -7/Data Miner | Free Robot Schematics ------------------ O-24 Administrator | -7/Data Miner | Free A-15 Conveyor | -7/Data Miner | Free G-50 Soldier | -7/Data Miner | Free W-25 Informer | -7/Data Miner | Free Y-64 Sentinel | -7/Data Miner | Free B-48 Gladiator | -7/Data Miner | Free Fabricated ------------ Adv. Hardlight Generator | x2 | -6/Factory | Preloaded Repaired ---------- Lgt. Treads | 24% | -10/Materials Imp. Medium Armor Plating | 17% | -5/Factory Studied --------- Imp. Light Cannon | -8/Materials | Hacked Katana | -8/Materials | Hacked Lgt. Treads | -8/Materials | Hacked Alien Tech Used ----------------- None Achievements -------------- Consequences Morally Flexible Challenges ------------ None Game ------ Seed DeuteriumTechJammer Manual? 0 Play Time 03:30:45 Cumulative 103.6 hours Start 2026.02.26 @ 21:21:05 End 2026.02.28 @ 19:02:41 Sessions 9 Manual Loads 0 Difficulty Rogue Special Mode None Game No. 44 Rogue 44 Adventurer 0 Explorer 0 Win Type - Total 2 Types 2/0/0/0/0/0/0/0/0/0 Lore% 56 Gallery% 49 Achievement% 45 Wizard Run 0 Options --------- Layout 1 ASCII 0 Keyboard 0 Movement Numpad Keybinds 0 Fullscreen 2 Font 24/Smallcaps Map View 50x35 Zoom Use 0% Tactical HUD 1 Map Filters NONE Filters NONE Steam 1 RUN: 56d5df5a-914a-455a-98ac-ed1bfd3c8527